Cogmind - Beta 17 @@@ ROGUE MODE // 2026.07.30 @ 02:15:11 Player: KURIIRI Result: Self-destructed Performance ------------- Evolutions (4) 2000 Regions Visited (5) 1000 Robots Destroyed (37) 185 Value Destroyed (1191) 1191 Prototype IDs (14) 280 Alien Tech Used (0) 0 Bonus (7123) 7123 TOTAL SCORE: 11779 Bonus ------- High Alert Combat Kills 49 Follower Combat Kills 474 Prayed to X0-1V1 5000 Major X0-1V1 Interference 800 Registered with UFD 300 Met Optimus in HQ 500 Cogmind --------- Core Integrity 752/950 Matter 215/700 Energy 900/900 System Corruption 7% Temperature Cool (0) Movement Treading (160) Location -6/Factory Parts ------- > --- POWER (2) -------- (None) > --- PROPULSION (4) --- Light Treads Improved Medium Treads > --- UTILITY (5) ------ Cooling System Large Storage Unit X0-1V1's Piety Tracker > --- WEAPON (4) ------- Heavy Plasma Cannon Katana > --- INVENTORY (16) --- Light Deuterium Engine Wheel Overtuned Scrapsphere Scrap Suit Improved Heat Sink Spectral Analyzer Advanced Sensor Array Recoil Stabilizer Medium Reactive Plating Improved Shield Generator Scrapoid Pod CPS Tube (2) Multitool Peak State ------------ > --- POWER ------------ Light Deuterium Engine Improved Deuterium Engine > --- PROPULSION ------- Light Treads Improved Medium Treads Wheel Compact Wheel > --- UTILITY ---------- Large Storage Unit Advanced Sensor Array Improved Signal Interpreter Medium Reactive Plating X0-1V1's Piety Tracker > --- WEAPON ----------- Improved EM Pulse Cannon Phase Cannon Heavy Plasma Cannon Katana > --- INVENTORY -------- Light Deuterium Engine Overtuned Scrapsphere Scrap Suit Improved Heat Sink Cooling System Spectral Analyzer Recoil Stabilizer Hacking Suite Scrapoid Pod Shock Bomb Launcher CPS Tube Multitool [Rating: 63] Favorites ----------- Power Light Ion Engine Engine Light Ion Engine Propulsion Light Treads Treads Light Treads Leg Aluminum Leg Wheel Compact Wheel Hover Unit Cooled Aerolev Unit Utility X0-1V1's Piety Tracker Device X0-1V1's Piety Tracker Storage Large Storage Unit Processor Improved Signal Interpreter Hackware Hacking Suite Protection Medium Reactive Plating Weapon Medium Laser Energy Gun Medium Laser Energy Cannon Subdweller Beam Cannon Launcher Shock Bomb Launcher Special Weapon CPS Tube Slashing Weapon Katana Build | -11 -10 -10 -8 -8 -6 ------- Run | Yrd Mat Sub Rec Scr Fac Slots Evolved 8 | . . . . . 8 Power . | . . . . . . Propulsion 3 | . . . . . 3 Utility 3 | . . . . . 3 Weapon 2 | . . . . . 2 Parts Attached 31 | 3 1 2 4 7 14 Power 3 | . . . . 2 1 Engine 3 | . . . . 2 1 Core . | . . . . . . Reactor . | . . . . . . Propulsion 9 | 2 . 1 2 . 4 Treads 5 | 2 . 1 1 . 1 Leg . | . . . . . . Wheel 3 | . . . 1 . 2 Hover 1 | . . . . . 1 Flight . | . . . . . . Utility 12 | 1 1 . 2 2 6 Device 5 | 1 1 . . . 3 Storage 3 | . . . 2 1 . Processor 2 | . . . . 1 1 Hackware 1 | . . . . . 1 Protection 1 | . . . . . 1 Artifact . | . . . . . . Weapon 7 | . . 1 . 3 3 Energy Gun . | . . . . . . Energy Cannon 4 | . . 1 . 1 2 Ballistic Gun . | . . . . . . Ballistic Cannon . | . . . . . . Launcher 1 | . . . . . 1 Special Weapon 1 | . . . . 1 . Impact Weapon . | . . . . . . Slashing Weapon 1 | . . . . 1 . Piercing Weapon . | . . . . . . Special Melee Weapon . | . . . . . . Unidentified Prototypes 2 | . 1 . . . 1 Parts Lost 10 | . . . . . 10 Power 2 | . . . . . 2 Propulsion 3 | . . . . . 3 Utility 2 | . . . . . 2 Weapon 3 | . . . . . 3 Highest Loss Streak 4 | . . . . . 4 To Critical Strikes . | . . . . . . Average Backups 10 | 4 4 5 9 13 11 Power . | 1 1 1 . . . Propulsion 1 | 2 2 2 2 1 1 Utility 4 | . . . 2 6 5 Weapon 2 | 1 1 1 2 2 . Tool/Special . | . . . . . . Unused Backups 38 | . . 1 1 17 19 Power 3 | . . . . 2 1 Propulsion 7 | . . . 1 2 4 Utility 16 | . . . . 7 9 Weapon 8 | . . 1 . 5 2 Tool/Special 4 | . . . . 1 3 Average Slot Usage (%) 84 | . 100 100 77 78 89 Engine 16 | . 14 14 12 18 12 Treads 9 | . 28 28 11 . 11 Wheel 9 | . . . 2 13 12 Device 13 | . 14 14 12 13 13 Storage 12 | . 14 14 12 13 6 Processor 1 | . . . . . 5 Energy Gun 11 | . 28 18 12 9 . Energy Cannon 8 | . . 9 12 6 14 Slashing Weapon 1 | . . . . . 6 Peak Build Rating 63 | 9 19 21 21 31 63 Average Rating 25 | 6 9 20 20 23 54 On Entrance 16 | 6 9 19 21 21 24 Avg Prop Armor Cover (%) 11 | . . . . . 11 Naked Turns . | . . . . . . Heaviest Build 84 | 12 12 19 34 39 84 Greatest Support 50 | 40 40 40 40 16 50 Greatest Overweight (x) 7 | . . . 2 2 7 Average Overweight (x) 1 | . . . . 1 2 Largest Inventory Capacity 16 | 8 8 9 16 16 16 Average Capacity 13 | 8 8 8 11 16 16 Most Carried 16 | 6 6 9 12 16 16 Average Carried 11 | 4 4 6 9 13 13 Final Capacity 16 | 8 8 9 16 16 16 Final Carried 16 | 4 5 9 12 16 15 Class Distribution -------------------- 89% | Mutant 5% | Scavenger-Mutant 4% | Skirmisher Dominant Class ---------------- Mutant | -10/Materials Mutant | -10/Subcaves Mutant | -8/Recycling Mutant | -8/Scraptown Scavenger-Mutant | -6/Factory Resources | -11 -10 -10 -8 -8 -6 ----------- Run | Yrd Mat Sub Rec Scr Fac Matter Collected 529 | 228 2 20 47 70 162 Remotely . | . . . . . . Salvage Created 1798 | 177 259 194 160 . 1008 Parts 78 | 10 12 5 9 . 42 Haulers Intercepted . | . . . . . . Recyclers Shooed 4 | . 1 . 1 . 2 Parts Field Recycled . | . . . . . . Retrieved Matter . | . . . . . . Parts Self-Destructed 10 | . . 10 . . . Prevented . | . . . . . . Parts Restored . | . . . . . . Kills | -11 -10 -10 -8 -8 -6 ------- Run | Yrd Mat Sub Rec Scr Fac Combat Hostiles Destroyed 25 | . 4 4 3 . 14 Guns 7 | . 4 3 . . . Cannons 13 | . . 1 3 . 9 AOE 4 | . . . . . 4 Classes Destroyed 11 | 2 1 4 . . 4 Worker 3 | . . . . . 3 Builder 1 | . . . . . 1 Tunneler 4 | 4 . . . . . Recycler 3 | 1 1 . . . 1 Mechanic 1 | . . . . . 1 Swarmer 5 | . . 1 . . 4 Grunt 13 | . 4 1 . . 8 Sentry 5 | . . 1 3 . 1 Programmer 1 | . . . . . 1 Artisan 2 | . . 2 . . . Subdweller 1 | . . 1 . . . Best Kill Streak 5 | 3 3 2 1 . 5 Combat Bots Only 4 | . 2 2 1 . 4 Max Kills in Single Turn 3 | 1 1 1 1 . 3 Gunslinging . | . . . . . . Exploded 1 | . . . . . 1 Melee . | . . . . . . Uniques/NPCs Destroyed . | . . . . . . Combat | -11 -10 -10 -8 -8 -6 -------- Run | Yrd Mat Sub Rec Scr Fac Hostile Shots Fired 143 | . 12 26 10 . 95 Missed 42 | . 4 5 3 . 30 Hits 101 | . 8 21 7 . 65 Projectile 101 | . 8 21 7 . 65 Critical Strikes 4 | . . 1 . . 3 Damage Taken 1833 | . 97 261 98 . 1377 Core 307 | . 23 45 31 . 208 Absorbed by Shields . | . . . . . . Ignored by Resistances 37 | . . . . . 37 Core Remaining (%) 91 | 100 . . . 83 . Volleys Fired 100 | 17 14 21 8 1 39 Largest 3 | 2 2 2 2 1 3 Hottest 244 | 90 90 130 130 . 244 Shots Fired 180 | 33 28 36 14 1 68 Gun 86 | 33 28 19 6 . . Cannon 84 | . . 17 8 . 59 Launcher 9 | . . . . . 9 Special 1 | . . . . 1 . Kinetic . | . . . . . . Thermal 161 | 33 28 36 14 . 50 Explosive . | . . . . . . Electromagnetic 18 | . . . . . 18 Robot Hit Streak 12 | 3 11 12 11 12 7 Robot Miss Streak 3 | 3 2 2 1 . 3 Penetration Max . | . . . . . . Secondary Targets . | . . . . . . Shots Hit Robots 125 | 15 21 22 13 1 53 Core Hits 65 | 6 12 7 5 . 35 Critical Kills . | . . . . . . Critical Parts Destroyed . | . . . . . . Critical Strikes 3 | . 1 1 1 . . Burn 3 | . 1 1 1 . . Melee Attacks 27 | . . . . . 27 Impact . | . . . . . . Slashing 27 | . . . . . 27 Piercing . | . . . . . . Sneak Attacks 6 | . . . . . 6 Combat Hostiles . | . . . . . . Follow-up Attacks . | . . . . . . Damage Inflicted 3353 | 179 255 371 308 . 2240 Guns 671 | 179 255 176 61 . . Cannons 1730 | . . 195 229 . 1306 Explosions 448 | . . . . . 448 Melee 486 | . . . . . 486 Ramming 18 | . . . 18 . . Kinetic . | . . . . . . Thermal 2196 | 179 255 371 290 . 1101 Explosive . | . . . . . . Electromagnetic 653 | . . . . . 653 Impact . | . . . . . . Slashing 486 | . . . . . 486 Piercing . | . . . . . . Highest Corruption 7 | . . . . . 7 Average Corruption 4 | . . . . . 4 Corruption Purged . | . . . . . . Corruption Blocked . | . . . . . . Effects 6 | . . . . . 6 Message Errors 2 | . . . . . 2 Matter Fused 1 | . . . . . 1 Energy Discharges 1 | . . . . . 1 Parts Rejected 1 | . . . . . 1 Misfires 1 | . . . . . 1 Overload Shots . | . . . . . . Overflow Damage 159 | . . . . . 159 Projectiles 1 | . . . . . 1 Explosions 5 | . . . . . 5 Melee 153 | . . . . . 153 Knockbacks . | . . . . . . Impact . | . . . . . . Kinetic . | . . . . . . Secondary . | . . . . . . Self-Inflicted Damage 115 | . . . . . 115 Shots 6 | . . . . . 6 Rammed 5 | . . . 5 . . Targets Rammed 5 | . . . 5 . . Kicked . | . . . . . . Crushed . | . . . . . . Highest Temperature 389 | 250 216 45 314 . 389 Average Temperature 116 | 123 87 19 124 . 147 Received Heat Transfer 417 | . 51 90 36 . 240 Effects 6 | 2 . . 1 . 3 Energy Bleed 1 | . . . . . 1 Interference 5 | 2 . . 1 . 2 Siege Activations . | . . . . . . Martial Activations . | . . . . . . Shielding Activations . | . . . . . . Robots Disrupted . | . . . . . . Combat Hostiles . | . . . . . . Robots Corrupted 1 | . . . . . 1 Combat Hostiles 1 | . . . . . 1 Parts Fried 3 | . . . . . 3 Impact Corruptions . | . . . . . . Robots Melted . | . . . . . . Combat Hostiles . | . . . . . . Parts Melted 3 | . 1 1 1 . . Heat Transferred 4137 | 495 731 827 555 . 1529 Parts Sabotaged . | . . . . . . Parts Stolen . | . . . . . . Parts Stripped . | . . . . . . Power Chain Reactions 1 | . . . . . 1 Alert | -11 -10 -10 -8 -8 -6 ------- Run | Yrd Mat Sub Rec Scr Fac Maximum Alert Level 2 | . . . . . 2 Low Security (%) 81 | 100 100 . 100 . 56 Level 1 9 | . . . . . 22 Level 2 8 | . . . . . 20 Level 3 . | . . . . . . Level 4 . | . . . . . . Level 5 . | . . . . . . High Security . | . . . . . . Max Security . | . . . . . . Peak Influence 621 | 15 50 . 24 . 621 Initial 3 | . 3 . . . . Average 84 | 2 16 . 3 . 193 Influence Increases 1397 | 25 165 75 127 . 1005 Destroy 0b10 Robot/C 720 | . 80 60 60 . 520 Destroy 0b10 Robot/NC 70 | 25 5 . . . 40 Destroy Leader 130 | . 20 . . . 110 Allied During Kill 54 | . . . . . 54 Trap Triggered on 0b10 10 | . 10 . . . . Successful Hack 70 | . 20 . 37 . 13 Select Force Hacks 150 | . 30 . 30 . 90 Disable Machine 105 | . . . . . 105 Destroy Structure 43 | . . . . . 43 Lose Combat Pursuer 45 | . . 15 . . 30 Influence Decreases 802 | 20 170 75 127 . 410 Entered New Map 2 | . 2 . . . . Time Decay 700 | 20 168 75 127 . 310 Lost Part 100 | . . . . . 100 Squads Dispatched 11 | . 1 . 1 . 9 Investigation 6 | . 1 . 1 . 4 Extermination 2 | . . . . . 2 Reinforcement . | . . . . . . Assault . | . . . . . . Garrison 3 | . . . . . 3 Intercept . | . . . . . . Searches Triggered . | . . . . . . Construction Impeded . | . . . . . . Haulers Reinforced . | . . . . . . Active Scanning Responses . | . . . . . . Cargo Convoy Interrupts 1 | . . . . . 1 Stealth | -11 -10 -10 -8 -8 -6 --------- Run | Yrd Mat Sub Rec Scr Fac Distress Signals 3 | . . . . . 3 Communications Jammed . | . . . . . . Distress Signals . | . . . . . . Times Spotted 53 | . 6 5 2 . 40 Peak Tracking Total 12 | . 2 3 1 . 12 Tactical Retreats 2 | . . 1 . . 1 Traps | -11 -10 -10 -8 -8 -6 ------- Run | Yrd Mat Sub Rec Scr Fac Traps Triggered . | . . . . . . Indirectly . | . . . . . . Trap Hack Attempts . | . . . . . . Triggered . | . . . . . . Disarmed . | . . . . . . Reprogrammed 6 | . 6 . . . . Reused 1 | . 1 . . . . Traps Extracted . | . . . . . . Installed . | . . . . . . Triggered 1 | . 1 . . . . Most Traps Carried 3 | . . 3 1 . . Machines | -11 -10 -10 -8 -8 -6 ---------- Run | Yrd Mat Sub Rec Scr Fac Machines Disabled 7 | . . . . . 7 Max in Single Turn 2 | . . . . . 2 Machines Repaired . | . . . . . . Machines Dismantled . | . . . . . . Machines Sabotaged . | . . . . . . Overloaded Fab Kills . | . . . . . . Hacking | -11 -10 -10 -8 -8 -6 --------- Run | Yrd Mat Sub Rec Scr Fac Machines Accessed 24 | . 6 1 6 2 9 Terminals 13 | . 5 . 5 . 3 Fabricators . | . . . . . . Repair Stations . | . . . . . . Recycling Units 5 | . 1 . 1 . 3 Scanalyzers 1 | . . . . . 1 Garrison Access 2 | . . . . . 2 Total Hacks 59 | . 18 3 15 3 20 Successful 30 | . 7 3 8 3 9 Failed 29 | . 11 . 7 . 11 Catastrophic 2 | . . . 1 . 1 Database Lockouts . | . . . . . . Manual 39 | . 18 . 14 . 7 Terminals 37 | . 17 . 13 . 7 Fabricators . | . . . . . . Repair Stations . | . . . . . . Recycling Units 6 | . 1 . 2 . 3 Scanalyzers 7 | . . . . . 7 Garrison Access 3 | . . . . . 3 Terminal Hacks 16 | . 6 3 2 3 2 Record 5 | . . 3 . 2 . Part Schematic 2 | . 2 . . . . Robot Schematic 1 | . . . 1 . . Robot Analysis 3 | . 2 . 1 . . Recycling Unit Index 1 | . . . . . 1 Locate Traps 1 | . 1 . . . . Reprogram Traps 1 | . 1 . . . . Registered Components 1 | . . . . . 1 Proto ID Catalog 1 | . . . . 1 . Fabricator Hacks . | . . . . . . Repair Station Hacks . | . . . . . . Recycling Unit Hacks . | . . . . . . Scanalyzer 2 | . . . . . 2 Insert Component 1 | . . . . . 1 Analyze 1 | . . . . . 1 Garrison Access Hacks . | . . . . . . Unauthorized Hacks 12 | . 1 . 6 . 5 Terminals 7 | . . . 5 . 2 Botnet 1 | . . . . . 1 Operators 1 | . . . . . 1 Skim 5 | . . . 5 . . Fabricators . | . . . . . . Repair Stations . | . . . . . . Recycling Units 5 | . 1 . 1 . 3 Tunnel 5 | . 1 . 1 . 3 Scanalyzers . | . . . . . . Garrison Access . | . . . . . . Data Cores Recovered . | . . . . . . Used . | . . . . . . Hacking Detections 15 | . 4 . 5 . 6 Full Trace Events 1 | . . . . . 1 Feedback Events . | . . . . . . Feedback Blocked . | . . . . . . Robot Schematics Acquired 1 | . . . 1 . . Robots Built . | . . . . . . Authchips . | . . . . . . Time . | . . . . . . Total Robot Build Rating . | . . . . . . Part Schematics Acquired 2 | . 2 . . . . Parts Built . | . . . . . . Authchips . | . . . . . . Time . | . . . . . . Total Part Build Rating . | . . . . . . Part Studies Acquired . | . . . . . . Parts Repaired . | . . . . . . Time . | . . . . . . Parts Recycled . | . . . . . . Recycled Matter . | . . . . . . Retrieved Matter . | . . . . . . Retrieved Components . | . . . . . . Parts Scanalyzed 1 | . . . . . 1 Part Schematics Acquired . | . . . . . . Parts Damaged 1 | . . . . . 1 Bothacking | -11 -10 -10 -8 -8 -6 ------------ Run | Yrd Mat Sub Rec Scr Fac Used RIF Installer . | . . . . . . Robots Hacked . | . . . . . . Non-combat . | . . . . . . Combat . | . . . . . . Robot Hacks Applied . | . . . . . . Relay Couplers Released . | . . . . . . Fabnet Peak Effective % . | . . . . . . Robots Rewired . | . . . . . . Allies Hacked . | . . . . . . Hacks Repelled . | . . . . . . Allies | -11 -10 -10 -8 -8 -6 -------- Run | Yrd Mat Sub Rec Scr Fac Total Allies 1 | . . . . 1 . Largest Group 1 | . . . . 1 1 Highest-Rated Group 63 | . . . . 63 63 Highest-Rated Ally 63 | . . . . 63 63 Initial UFD Resources 24 | . . . . . 24 Total Orders 4 | . . . . 2 2 STAY 2 | . . . . 1 1 FOLLOW 2 | . . . . 1 1 Ally Attacks 46 | . . . . . 46 Total Damage 1378 | . . . . . 1378 Kills 15 | . . . . . 15 Allies Corrupted . | . . . . . . Allies Melted . | . . . . . . X0-1V1 Amusement Gains 104 | . 7 . . . 97 Good Acts 23 | . . 12 6 . 5 Bad Acts 7 | . . 2 4 . 1 Intel | -11 -10 -10 -8 -8 -6 ------- Run | Yrd Mat Sub Rec Scr Fac Active Infowar (turns) 1083 | 6 491 . . . 586 Sensors 586 | . . . . . 586 Terrain 497 | 6 491 . . . . Robot Analysis Total 3 | . 2 . 1 . . Derelict Logs Recovered 2 | . . 1 . 1 . Drone Launches . | . . . . . . Drone Recoveries . | . . . . . . Exploration | -11 -10 -10 -8 -8 -6 ------------- Run | Yrd Mat Sub Rec Scr Fac Turns Passed 6903 | 97 496 939 875 3455 1041 Spaces Moved 4458 | 15 165 530 406 2701 641 Core . | . . . . . . Treads 1071 | 9 165 530 359 . 8 Legs 6 | 6 . . . . . Wheels 3381 | . . . 47 2701 633 Hover . | . . . . . . Flight . | . . . . . . Fastest Speed 105 | 120 160 160 130 115 105 Average Speed 131 | 144 160 160 156 121 125 Slowest Speed 240 | 160 160 160 160 130 240 Overloaded Moves . | . . . . . . Propulsion Burnouts . | . . . . . . Robots Hopped . | . . . . . . Potential Cave-ins . | . . . . . . Cave-ins Triggered 1 | . . . . . 1 Exploration Rate (%) 45 | 2 35 35 93 88 22 Regions Visited 5 Branch Regions 3 Pre-discovered Areas 5 | . 1 . 1 . 3 Known Exits Taken 3 | . . 1 1 1 . Unknown Exits Taken 2 | 1 1 . . . . Scrap Searched 6 | . . . . 6 . Spaces Dug 14 | . . . . . 14 Terrain Destroyed 29 | . . 3 . . 26 Melee 14 | . . . . . 14 Projectile 13 | . . 3 . . 10 AOE 2 | . . . . . 2 Terrain Rammed . | . . . . . . Walls Destroyed . | . . . . . . Machines Disabled . | . . . . . . Actions | -11 -10 -10 -8 -8 -6 --------- Run | Yrd Mat Sub Rec Scr Fac Total 5288 | 58 370 587 629 2879 765 Wait 574 | 22 186 28 192 116 30 Move 4453 | 14 164 529 405 2700 641 Hop . | . . . . . . Pick Up 45 | . 3 3 8 28 3 Fast Attach 12 | 1 . . . 2 9 Attach 10 | 2 . . . 3 5 Detach . | . . . . . . Swap 18 | . 1 2 5 2 8 Drop 44 | 2 2 4 6 27 3 Fire 100 | 17 14 21 8 1 39 Melee 27 | . . . . . 27 Ram . | . . . . . . Kick . | . . . . . . Crush 5 | . . . 5 . . Escape Stasis . | . . . . . . Rewire . | . . . . . . Trap . | . . . . . . Miscellaneous . | . . . . . . Route ------- -11/Scrapyard -10/Materials (discovered 3 exits: [*Mat] / [*Min] / *Sub) -10/Subcaves (discovered 3 exits: Mat x2 / *Rec) -8/Recycling (discovered 2 exits: Fac / *Scr) -8/Scraptown (discovered 2 exits: *Fac x2) -6/Factory (discovered 1 exit: Fac) History --------- Turn | Location | Event 26 | -11/Scrapyard | Discovered new exit (range 2) 98 | -11/Scrapyard | Entered Materials 137 | -10/Materials | Discovered new exit (range 10) 284 | -10/Materials | Discovered new exit (range 3) 303 | -10/Materials | Build established: Mutant 451 | -10/Materials | Discovered new exit (range 11) 589 | -10/Materials | Prayed at D.C.S.S. Altar Unit 594 | -10/Materials | Entered Subcaves 595 | -10/Subcaves | Inventory capacity permanently improved by X0-1V1 (+1; -100 max core) 613 | -10/Subcaves | Identified exit to Materials 628 | -10/Subcaves | Shifting Twisted Machinery released Sub. Machine Gun 631 | -10/Subcaves | Visited Clippyterm 635 | -10/Subcaves | Learned Factory stockpile data 646 | -10/Subcaves | Shifting Twisted Machinery released Sub. Monowheel 849 | -10/Subcaves | Identified exit to Recycling 849 | -10/Subcaves | X0-1V1 revealed exit location to -8/Recycling 899 | -10/Subcaves | Shifting Twisted Machinery released Battle Cannon 900 | -10/Subcaves | Shifting Twisted Machinery released Sub. Beam Cannon 991 | -10/Subcaves | X0-1V1 activates XOMVISION 994 | -10/Subcaves | X0-1V1 revealed exit location to -8/Materials 1068 | -10/Subcaves | X0-1V1 sent you into danger 1533 | -10/Subcaves | Entered Recycling 1601 | -8/Recycling | Core integrity permanently improved by X0-1V1 (+300) 1611 | -8/Recycling | X0-1V1 mutated your Propulsion slot to Power slot 1851 | -8/Recycling | Identified exit to Scraptown 1851 | -8/Recycling | X0-1V1 revealed exit location to -8/Scraptown 2038 | -8/Recycling | Identified exit to Factory 2130 | -8/Recycling | Weapon slot count temporarily expanded by X0-1V1 (+4) 2169 | -8/Recycling | Learned location of 2 exits from Lower Caves 2257 | -8/Recycling | Learned Factory security intel 2307 | -8/Recycling | Learned Factory trap positions 2365 | -8/Recycling | Learned Factory interactive machine intel 2378 | -8/Recycling | Scanned before Scraplab entrance 2396 | -8/Recycling | Entered Scraplab 2402 | -8/Recycling | X0-1V1 activates XOMVISION 2408 | -8/Recycling | Entered Scraptown 2548 | -8/Scraptown | Heard Great Nut preacher, LISTEN AND RECITE! 2676 | -8/Scraptown | Scanned Subdweller tech in exchange for log data 2680 | -8/Scraptown | Learned Factory emergency access door positions 2711 | -8/Scraptown | Visited Symbiants 2737 | -8/Scraptown | Visited Spacefarers 2746 | -8/Scraptown | Visited Cyclists 2775 | -8/Scraptown | Visited Cave Peace 2954 | -8/Scraptown | Visited UFD Registry 2954 | -8/Scraptown | Registered with UFD as "Protonsourcer" 2964 | -8/Scraptown | Visited Red Mages 2982 | -8/Scraptown | Visited Junk Repository 3003 | -8/Scraptown | Visited Shadow of the Wyrm 3077 | -8/Scraptown | Guru changed UFD alias to "Flakmaster" 3201 | -8/Scraptown | Visited Observation Area 3245 | -8/Scraptown | Visited Scrapoid Pod Storage 3265 | -8/Scraptown | Visited Chapter 10 3283 | -8/Scraptown | Visited A0-MCA Data Center 3291 | -8/Scraptown | Given a C+ rating by A0-MCA 3306 | -8/Scraptown | Visited DA-N13 Charitable Foundation 3310 | -8/Scraptown | Found DCF Scrap (30 items) 3338 | -8/Scraptown | Visited Scrap Suit Storage 3355 | -8/Scraptown | Visited Science Guys 3469 | -8/Scraptown | Visited Infowarlord's Domain 3485 | -8/Scraptown | Visited Junk Cannon Lab 3512 | -8/Scraptown | Visited Botcube Research 3517 | -8/Scraptown | Found Botcube 3559 | -8/Scraptown | Found Spectral Analyzer 4448 | -8/Scraptown | Found Scrap Suit 4574 | -8/Scraptown | Found Scrapoid Pod 4744 | -8/Scraptown | Botcube activated 4766 | -8/Scraptown | Botcube completed mutation into treaded form, armed with 2 cannons 4808 | -8/Scraptown | Attached CPS modules to *2Slug 5416 | -8/Scraptown | Entered Cyclist Reading Room 5557 | -8/Scraptown | Discovered exit to Factory (range 5) 5682 | -8/Scraptown | Found Scrap Suit 5793 | -8/Scraptown | Met Optimus 5793 | -8/Scraptown | Accepted into 0bPrime 5863 | -8/Scraptown | Entered Factory 5863 | -6/Factory | Accompanied by 1 ally 5863 | -6/Factory | Evolved 8 slots: Propulsion x3, Utility x3, Weapon x2 5864 | -6/Factory | Loaded intel: 94 trap records 5868 | -6/Factory | Loaded intel: 54 interactive machine locations 6306 | -6/Factory | X0-1V1 activates XOMVISION 6308 | -6/Factory | Build established: Skirmisher 6342 | -6/Factory | EX resistance permanently improved by X0-1V1 (+10%; -100 max core) 6382 | -6/Factory | Identified exit to Factory 6382 | -6/Factory | X0-1V1 revealed exit location to -5/Factory 6759 | -6/Factory | Build established: Scavenger-Mutant 6774 | -6/Factory | Crushed by falling debris 6805 | -6/Factory | Lost 3 parts (2u1w) 6902 | -6/Factory | Cargo convoy interrupted 6904 | -6/Factory | Self-destructed Last Messages --------------- 06901_ X-62 Marksman unfolds itself. 06901_ P-60 Hacker unfolds itself. 06901_ H-66 Slayer unfolds itself. 06901_ E-15 Imp unfolds itself. 06901_ R-10 Processor collects Corrupted Autogun. 06902_ ALERT: Cargo convoy interrupted, initiating access lockdown. 06902_ X0-1V1 roars with laughter! 06903_ C-45 Heavy ARC bursts open, deploying its payload. 06903_ X-72 Disruptor unfolds itself. 06903_ H-66 Slayer unfolds itself. 06903_ P-60 Hacker unfolds itself. 06903_ H-66 Slayer unfolds itself. 06903_ E-15 Imp unfolds itself. 06903_ Penetrated by Slug. 06903_ Shock Bomb Launcher destroyed. 06904_ Penetrated by Slug. 06904_ Imp. Deuterium Engine destroyed. Map ----- +----------------------------------------------------+ | ???????????????????????????????????????"""???????? | | ????????????????????????????"?"??????????????????? | | ????????????????????????????"G"??????????????????? | | ????????????????????????????"""???????????????^??? | | ????????????????????????????????????????????????=? | | ?????????????????????????????????????????????????? | | ?????????????????????????????????????????????????? | | ?????? ????????????????????????????????????????^? | | ????? ?????????????????????????????????????????? | | ?????" ?????????????????????????????????????????? | | ?????" ?????????????????????????????????????????? | | ?????" ?????????????????????????????????????????? | | ?"?" " ?????????????????????????????????????????? | | ?" " " ####+##############??????????????????????? | | " " " ^ #??????????????????????? | | " " " ^ ###????????????????????? | | " " " ^ i ?????????????????????? | | " " " #??????????????????????? | | ^ A #?####?????????????????? | | ??^ R #? ???? ??????????? | | ???^? p % # "" ??? ??????????? | | # # ""##### xx # "Y??? / ??^????????? | | %= ! R ; ""? ????????????? | | # # heh #?? """??????????????? | | = # p%h # """ ????^????????? | | =!! # xe@/ """ ??????^^?????? | | =! # ; #?????????? | | # # # """ """ #?????????? | | ## # # """ """??????????????? | | # # #?""" ""???????????????? | | # # #?? ?????????????????? | | ## # ###+##### #???#+#????????????????? | | ?## # ## ?? #??????????????????????? | | ??# ? #??????????????????????? | | ??# +??????????????????????? | | ??# #??????????????????????? | | ??# #??????????????????????? | | ??# ? #??????????????????????? | | ????#+###??? ? #??????????????????????? | | ?????????????? ?????######???????????????????????? | | ?????????????????????????????????????????????????? | | ?????????????????????????????????????????????????? | | ?????????????????????????????????????????????????? | | ?????????????????????????????????????????????????? | | ?????????????????????????????????????????????????? | | ?????????????????????????????????????????????????? | | ?????????????????????????????????????????????????? | | ?????????????????????????????????????????????????? | | ?????????????????????????????????????????????????? | | ?????????????????????????????????????????????????? | +----------------------------------------------------+ Best States ------------- Heat Dissipation 59 Energy Generation 25 Energy Capacity 1425 Matter Stores 1000 Matter Capacity 1000 Sight Range 21 Robot Scan Range 16 Terrain Scan Range 16 Terrain Scan Density 10 Armor Coverage 225 Resistance: KI 30 Resistance: EX 10 Evasion (%) 40 Recoil Reduction 2 Offensive Hacking 10 Item Schematics ----------------- Hcp. Storage Unit | -10/Materials | Hacked Huge Storage Unit | -10/Materials | Hacked Robot Schematics ------------------ M-28 Smith | -8/Recycling | Hacked Fabricated ------------ Nothing Repaired ---------- Nothing Studied --------- None Alien Tech Used ----------------- None Achievements -------------- None Challenges ------------ None Game ------ Seed HypercooledMicroSuperbattery Manual? 0 Play Time 00:42:47 Cumulative 619.5 hours Start 2026.07.29 @ 23:06:30 End 2026.07.30 @ 02:15:11 Sessions 5 Manual Loads 0 Difficulty Rogue Special Mode None Game No. 554 Rogue 518 Adventurer 36 Explorer 0 Win Type - Total 8 Types 2/2/0/1/1/0/0/2/0/0 Lore% 84 Gallery% 74 Achievement% 67 Wizard Run 0 Options --------- Layout 2 ASCII 0 Keyboard 0 Movement Numpad Keybinds 0 Fullscreen 1 Font 48/Smallcaps Map View 50x44 Zoom Use 0% Tactical HUD 1 Map Filters NONE Filters NONE Steam 1 RUN: 0ea87c9e-9633-438f-92e3-48c77ed1420c